[Event "55th Biel Festival MTO 2022"]
[Site "Biel"]
[Date "2022.07.18"]
[Round "5.3"]
[White "Pranav Anand"]
[Black "Sethuraman S.P."]
[Result "1-0"]
[ECO "A62"]
[WhiteElo "2463"]
[BlackElo "2623"]
[Annotator "TA"]
[PlyCount "141"]
[EventDate "2022.07.13"]
[EventType "swiss"]
[EventCountry "SUI"]
[SourceTitle "playchess.com"]
[Source "ChessBase"]
[SourceQuality "1"]
[TimeControl "40/5400+30:1800+30"]

{[%evp 18,141,29,14,19,12,35,0,18,9,12,6,22,20,8,-13,-15,-23,-9,-65,-63,-63,-57,-49,-51,-41,-45,-121,-112,-104,-116,-178,-174,-165,-172,-207,-218,-208,0,-175,-186,-186,-199,-193,-194,-184,-37,-30,-49,-37,18,-8,18,0,169,169,335,120,129,0,333,196,315,306,293,216,288,267,352,358,317,297,1998,817,790,489,580,555,741,713,707,713,670,385,387,376,383,324,425,425,425,421,391,341,515,515,511,501,839,838,879,808,878,877,870,867,867,844,838,838,838,662,789,0,662,662,662,662,637,635,662,662,660,445,29975,29976]} 1. d4 {[%emt 0:00:05]} Nf6 {[%emt 0:01:56]} 2. c4 {[%emt 0:00:08]} e6 {[%emt 0:00:04]} 3. g3 {[%emt 0:00:06]} c5 {[%emt 0:00:16]} 4. d5 {[%emt 0:00:04]} exd5 {[%emt 0:00:09]} 5. cxd5 {[%emt 0:00:05]} d6 {[%emt 0:00:05]} 6. Nc3 {[%emt 0:00:08]} g6 {[%emt 0:00:08]} 7. Bg2 {[%emt 0:00:04]} Bg7 {[%emt 0:00:04]} 8. Nf3 {[%emt 0:00:03]} O-O {[%emt 0:00:11]} 9. O-O {[%emt 0:00:06]} Re8 {[%emt 0:00:17]} 10. Bf4 {[%emt 0:00:05]} h6 {[%emt 0:00:08] 10...Bf5 is the modern continuation. A62: Modern Benoni: Fianchetto Variation without early ...Nbd7.} 11. h3 {[%emt 0:10:51][%cal Bh2h3,Bh3h4][%mdl 32] [#]} Na6 $146 {[%emt 0:08:53]} ({Predecessor:} 11... g5 12. Bc1 Bf5 13. Nd2 Qd7 14. g4 Bg6 15. a4 Na6 16. Nc4 Nb4 17. f4 Bc2 18. Qd2 {0-1 (85) Oganian,M (2454)-Jakovenko,D (2710) Sochi 2017}) 12. Re1 {[%emt 0:10:35]} (12. Qc1 $5 {[%cal Rf4h6]}) 12... g5 {[%emt 0:08:09] The position is equal.} 13. Bd2 {[%emt 0:13:14]} Bf5 {[%emt 0:01:53]} 14. h4 {[%emt 0:00:32]} g4 {[%emt 0:00:07]} 15. Nh2 {[%emt 0:00:07]} Bg6 {[%emt 0:09:57]} 16. e4 {[%emt 0:01:52]} h5 {[%emt 0:05:47]} 17. Bf4 {[%emt 0:06:36]} c4 {[%emt 0:01:56]} 18. Nb5 {[%emt 0:08:35]} (18. Nf1 $1 $11) 18... Nxe4 {[%emt 0:03:17]} (18... Rxe4 {looks sharper.} 19. Bxe4 Nxe4 20. Rxe4 Bxe4 21. Nxd6 Bd3) 19. Bxe4 {[%emt 0:00:24]} Rxe4 {[%emt 0:00:08]} 20. Rxe4 {[%emt 0:00:08]} Bxe4 {[%emt 0:00:04]} 21. Nxd6 {[%emt 0:00:19]} Bd3 {[%emt 0:00:29]} 22. b3 {[%emt 0:11:57]} (22. Rc1 $1 $15) 22... Nb4 $17 {[%emt 0:23:52]} (22... Bxa1 23. Qxa1 cxb3 24. axb3 $11) 23. bxc4 {[%emt 0:08:11][%cal Oa1b1]} Bc2 {[%emt 0:02:55] Inhibits Rb1. This bishop pair is nice.} 24. Qd2 {[%emt 0:09:55]} Bxa1 $19 {[%emt 0:01:24]} 25. Qxb4 {[%emt 0:00:03]} Qb6 {[%emt 0:09:43]} 26. Nb5 {[%emt 0:00:04]} Re8 {[%emt 0:05:56] Prevents Qe7.} 27. Qd2 {[%emt 0:04:00] Inhibits Bd3.} Qg6 {[%emt 0:02:14]} (27... a6 $1 $19 {White must now prevent ...Bg6.} 28. Qxc2 axb5) 28. Nc7 $2 {[%emt 0:04:37] [#]} (28. Nd6 $11 {and White has nothing to worry.} Re7 29. Nc8) 28... Re4 $1 {[%emt 0:02:07]} 29. Be3 {[%emt 0:03:37] Inhibits Rd4.} (29. Qc1 $2 Bc3 $1 30. Be3 Rxc4 $19) 29... Rxc4 {[%emt 0:00:28]} 30. d6 {[%emt 0:00:08]} Be5 $1 {[%emt 0:07:01]} 31. Ne8 {[%emt 0:02:02] Strongly threatening d7.} Ba4 {[%emt 0:03:28]} (31... Bc3 $1 $19 {[%cal Rc3d2]} 32. Qd5 Qe6 33. Qxe6 fxe6) 32. d7 $15 {[%emt 0:00:12] [#]} Bxd7 {[%emt 0:00:22]} 33. Qxd7 {[%emt 0:00:01]} Kh7 {[%emt 0:00:25]} (33... Rc6 $15) 34. Qe7 $132 {[%emt 0:06:01][%mdl 2048] White is not holding back} (34. Bxa7 Rc1+ 35. Nf1 Qe6 36. Qd3+ f5 $17) (34. Qxb7 Qe6 35. Qb5 a6 $17) 34... Re4 {[%emt 0:01:36]} (34... Qe6 $5 {[%cal Re6e7]} 35. Qg5 Qxe8 36. Qxh5+ Kg8 $11) 35. Qxb7 {[%emt 0:00:12]} a5 $2 {[%emt 0:00:42]} (35... Rxe3 $1 $11 36. fxe3 Qe6) 36. Qd5 $1 $18 {[%emt 0:01:13]} Kg8 $2 {[%emt 0:01:08]} (36... Rxe3 $2 37. fxe3 Bxg3 38. Nf1 $18 (38. Qxa5 Bxh2+ 39. Kxh2 g3+ 40. Kg2 Qe4+ 41. Kh3 Qg4+ 42. Kg2 Qe4+ 43. Kxg3 Qxe3+ 44. Kh2 Qe2+ 45. Kh1 Qe4+ 46. Kh2 Qe2+ 47. Kh3 Qg4+ 48. Kh2 Qf4+ 49. Kh3 Qg4+ 50. Kh2 Qxh4+ 51. Kg2 Qe4+ 52. Kg3 Qg4+ 53. Kf2 Qh4+ 54. Kg2 Qg4+ 55. Kf2 Qh4+ 56. Kg2 $11)) (36... Bh8) 37. Qd8 $2 {[%emt 0:00:20]} (37. Qxa5 Rxe3 38. fxe3 Qb1+ 39. Nf1 Qb8 40. Nf6+ (40. Qa4 Kf8 $18) 40... Bxf6 41. Qxh5 Qb4 $18) (37. Nf1 $18 {is more deadly.}) 37... Kh7 $16 {[%emt 0:00:04]} (37... Rxe3 $2 38. fxe3 Bxg3 39. Nf1 $18 (39. Qxa5 Bxh2+ 40. Kxh2 g3+ 41. Kg2 Qe4+ 42. Kxg3 Qxe3+ 43. Kh2 Qf4+ 44. Kg2 Qe4+ 45. Kh3 Qg4+ 46. Kh2 Qxh4+ 47. Kg2 Qg4+ 48. Kh2 Qf4+ 49. Kg2 Qg4+ 50. Kh2 Qe2+ 51. Kg3 Qxe8 $11) (39. Nf6+ Kg7 $18)) 38. Qd5 $2 {[%emt 0:00:30]} (38. Qxa5 $6 Bxg3 $1 39. Nf1 (39. fxg3 Rxe3 40. Nf6+ Qxf6 $17) 39... Bxh4 $11) (38. Nf1 $16) 38... Kg8 $1 $18 {[%emt 0:00:43]} (38... Rxe3 $2 39. fxe3 Bxg3 40. Nf1 $18 (40. Qxa5 Bxh2+ 41. Kxh2 g3+ 42. Kg2 Qe4+ 43. Kh3 Qg4+ 44. Kg2 Qe4+ 45. Kxg3 Qxe3+ 46. Kh2 Qe2+ 47. Kg1 Qe3+ 48. Kh1 Qe4+ 49. Kh2 Qxh4+ 50. Kg2 Qg4+ 51. Kh2 Qh4+ 52. Kg2 Qg4+ 53. Kh2 Qf4+ 54. Kh3 Qf3+ 55. Kh2 Qf4+ 56. Kh3 Qf3+ 57. Kh2 Qf4+ $11)) 39. a3 {[%emt 0:00:28]} ({Don't play} 39. Qxa5 Rxe3 40. fxe3 Qb1+ 41. Nf1 Qb8 42. Nf6+ (42. Qa4 Kf8 $18) 42... Bxf6 43. Qxh5 Qb4) (39. Nf1 $142) 39... Bc3 {[%emt 0:01:10]} (39... Rxe3 {is a better defense.} 40. fxe3 Bxg3) 40. Nd6 {[%emt 0:00:38]} Re5 {[%emt 0:00:34]} 41. Qa8+ {[%emt 0:05:50]} Kg7 {[%emt 0:01:23]} 42. Qc8 {[%emt 0:08:23]} Bb2 {[%emt 0:01:27]} 43. Nc4 {[%emt 0:00:47][%csl LRb2,LRe5]} Qc2 {[%emt 0:04:56]} 44. Nxg4 {[%emt 0:07:38]} Rb5 $2 {[%emt 0:00:04]} (44... Qd1+ 45. Kh2 Qxg4 46. Qxg4+ hxg4 47. Nxb2 f6) 45. Qc6 {[%emt 0:02:09]} (45. Nh6 $142 Qh7 46. Nxb2) 45... Rf5 {[%emt 0:02:15]} 46. Nh2 {[%emt 0:03:17][%cal Bg4h2,Bh2f1,Bf1d2][%mdl 32]} Bf6 {[%emt 0:05:53]} 47. Qd7 {[%emt 0:00:34] Inhibits Qd1+. aiming for Nd6.} Qb1+ {[%emt 0:01:21]} 48. Nf1 {[%emt 0:00:07] Nd6 is the strong threat.} Qb5 {[%emt 0:00:03]} 49. Qc7 {[%emt 0:00:50]} Qd5 {[%emt 0:04:20]} 50. Qc8 {[%emt 0:01:32][%cal Oe3h6] Hoping for Bh6+!} Qe6 {[%emt 0:00:52]} 51. Qxe6 {[%emt 0:01:08]} fxe6 {[%emt 0:00:05]} 52. Nfd2 {[%emt 0:00:15]} Rd5 {[%emt 0:00:47]} 53. Nb3 {[%emt 0:00:30]} Bc3 {[%emt 0:00:42]} 54. Kg2 {[%emt 0:00:25]} Kf6 {[%emt 0:00:57]} 55. a4 {[%emt 0:00:03]} e5 {[%emt 0:01:44]} (55... Rd1 {keeps fighting.} 56. Bb6 Rb1) 56. Bb6 {[%emt 0:00:39]} Rd3 {[%emt 0:00:33]} 57. Bxa5 {[%emt 0:01:08]} Bxa5 {[%emt 0:00:43]} (57... Bb4 $142 58. Bxb4 Rxb3) 58. Nbxa5 {[%emt 0:00:23]} e4 {[%emt 0:00:21]} 59. Nb6 {[%emt 0:00:30]} Ra3 {[%emt 0:00:25]} 60. Nac4 {[%emt 0:00:18]} Ra2 {[%emt 0:00:05]} 61. Nd5+ {[%emt 0:00:42]} Kf5 {[%emt 0:00:36]} 62. a5 {[%emt 0:00:11]} Ra4 {[%emt 0:00:00]} 63. Nde3+ {[%emt 0:00:11]} Ke6 {[%emt 0:00:00]} 64. Nd2 {[%emt 0:01:10]} Ke5 {[%emt 0:00:19]} 65. Ndc4+ {[%emt 0:00:09]} Ke6 $1 {[%emt 0:00:07]} 66. Kf1 {[%emt 0:00:34]} Ra1+ {[%emt 0:00:34] [#]} 67. Ke2 $1 {[%emt 0:00:09]} Ra2+ {[%emt 0:00:04]} 68. Nd2 {[%emt 0:00:49]} Ke5 {[%emt 0:00:08]} 69. Nec4+ {[%emt 0:00:05]} Kd4 {[%emt 0:00:23]} 70. Nd6 {[%emt 0:00:34]} Rxa5 {[%emt 0:00:26]} (70... Kd5 $18 71. N6xe4 Rxa5) 71. Nb3+ {[%emt 0:00:07] Never resign too early!  Weighted Error Value: White=0.46/Black=0.35} 1-0

[Event "55th Biel Festival MTO 2022"]
[Site "Biel"]
[Date "2022.07.18"]
[Round "5.4"]
[White "Aryan Chopra"]
[Black "Mendonca Leon Luke"]
[Result "1-0"]
[ECO "B12"]
[WhiteElo "2610"]
[BlackElo "2567"]
[Annotator "TA"]
[PlyCount "83"]
[EventDate "2022.07.13"]
[EventType "swiss"]
[EventCountry "SUI"]
[SourceTitle "playchess.com"]
[Source "ChessBase"]
[SourceQuality "1"]
[TimeControl "40/5400+30:1800+30"]

{[%evp 13,83,40,51,15,20,12,25,0,0,0,0,0,-6,-6,0,-29,-11,-28,-11,-28,0,-2,0,-37,76,82,76,0,0,0,0,-81,-75,-63,0,0,0,0,66,18,40,0,0,0,10,0,83,115,86,0,280,275,260,225,734,734,734,734,727,720,697,659,712,705,29989,29990,29990,29987,29987,5235,29988,2072]} 1. e4 {[%emt 0:00:03]} c6 {[%emt 0:00:09][%cal Bc7c6,Bc6c5][%mdl 32]} 2. d4 {[%emt 0:00:05]} d5 {[%emt 0:00:09]} 3. e5 {[%emt 0:00:07]} Bf5 {[%emt 0:00:23]} 4. Nf3 {[%emt 0:00:14]} e6 {[%emt 0:00:24]} 5. Be2 {[%emt 0:00:10]} c5 {[%emt 0:01:06]} 6. Be3 {[%emt 0:00:23]} Qb6 {[%emt 0:01:26] is the new trend.} 7. Nc3 {[%emt 0:00:42]} Nc6 {[%emt 0:01:04][%cal Bb8c6,Bc6b4,Bb4c2][%mdl 32]} (7... Qxb2 8. Nb5 $16) 8. Na4 {[%emt 0:00:34] B12: Caro-Kann: Advance Variation.} (8. O-O $5 {[%cal Rd4c5]}) 8... Qa5+ {[%emt 0:00:37]} 9. c3 {[%emt 0:00:05][%cal Ra4c5]} c4 {[%emt 0:00:32]} 10. b4 {[%emt 0:00:23] White has an edge.} Bxb4 {[%emt 0:01:54]} 11. cxb4 {[%emt 0:00:06]} Nxb4 {[%emt 0:00:05]} 12. Nc5 $1 {[%emt 0:00:14]} Nc2+ {[%emt 0:00:42]} 13. Kf1 {[%emt 0:00:04]} Nxa1 {[%emt 0:00:08]} 14. Qxa1 {[%emt 0:00:05]} Qb5 {[%emt 0:05:08] [#]} 15. a4 $5 $146 {[%emt 0:03:31][%mdl 8] New and interesting.} (15. Bd1 $5 {[%cal Rd1a4]} c3+ 16. Be2 $15 (16. Kg1 $2 c2 $19)) ({Predecessor:} 15. Qd1 Ne7 16. Nh4 Qb1 17. g4 Bc2 18. Qxb1 Bxb1 19. Kg2 Bxa2 20. Ra1 Bb3 21. Nxb7 {½-½ (76) Grischuk,A (2758)-Bluebaum,M (2642) Chess.com INT 2022}) 15... Qc6 {[%emt 0:07:46]} 16. Nh4 {[%emt 0:01:25]} Bc2 {[%emt 0:04:20]} 17. a5 {[%emt 0:23:10]} Ne7 {[%emt 0:26:30]} 18. Qb2 {[%emt 0:05:21][%csl LRb7,LRc2]} (18. Qa2 $5 {[%cal Ra2c2]} Nf5 19. Nxf5 (19. Qxc2 Nxh4 20. Bg4 b6 $15) 19... Bxf5 20. g4 $15) 18... Nf5 {[%emt 0:22:07]} (18... Ba4 $15 {stays ahead.}) 19. Nxf5 $1 $16 {[%emt 0:29:21]} ({But not} 19. Qxc2 Nxh4 20. Bg4 b6 $15) 19... Bxf5 {[%emt 0:00:10]} 20. a6 {[%emt 0:01:27]} (20. g4 $16 Bg6 21. Qxb7 Qxb7 22. Nxb7) 20... b6 $11 {[%emt 0:08:35][%cal Bb7b6,Bb6b5][%mdl 32]} 21. Nb7 {[%emt 0:00:06]} O-O $1 {[%emt 0:00:21]} 22. Nd6 {[%emt 0:01:52]} (22. Qb4 $11 {keeps the balance.}) 22... b5 $1 $17 {[%emt 0:03:31]} 23. g4 {[%emt 0:06:17]} Bg6 {[%emt 0:01:41]} (23... Be4 $15 24. f3 Bd3) 24. Kg2 $11 {[%emt 0:02:56]} Qxa6 {[%emt 0:05:23]} 25. h4 {[%emt 0:00:52][%cal Bh2h4,Bh4h5,Bh5h6][%mdl 32]} f6 {[%emt 0:02:23]} (25... Qa4 $11 26. Bd1 Qa5) 26. h5 $14 {[%emt 0:02:44]} Be8 {[%emt 0:02:25]} 27. h6 {[%emt 0:04:40] hxg7 is the strong threat.} (27. g5 $5 {[%cal Rg5f6]} fxe5 28. dxe5 $11) 27... g6 {[%emt 0:01:10]} 28. Bf4 {[%emt 0:00:09]} Qb6 {[%emt 0:01:56]} 29. exf6 {[%emt 0:00:18][%mdl 64] Remove Defender} Rxf6 {[%emt 0:01:03]} (29... Rd8 $11 30. Nxe8 Rdxe8) 30. Be5 $36 {[%emt 0:05:45][%mdl 2048] Keeping Black busy. White is much more active.} Rf8 {[%emt 0:00:31]} 31. Bd1 {[%emt 0:00:08]} (31. Qc3 $16) 31... Rd8 $2 {[%emt 0:01:45][%mdl 8192]} (31... Qd8 $11) 32. Nxe8 $18 {[%emt 0:00:19] The board is on fire.} Rdxe8 {[%emt 0:00:32]} 33. Bc2 $1 {[%emt 0:00:10] A strong pair of Bishops.} Rf7 $2 {[%emt 0:00:31] [#]} (33... Re7) 34. Bxg6 $1 {[%emt 0:09:46][%mdl 512]} hxg6 {[%emt 0:00:04] [#]} 35. h7+ $1 {[%emt 0:00:04]} Rxh7 {[%emt 0:00:06]} 36. Qb1 {[%emt 0:00:10]} Rg7 {[%emt 0:00:58] [#]} 37. Qc1 $1 {[%emt 0:00:08]} Qb7 {[%emt 0:00:50] White must now prevent ...Rh7.} 38. Qh6 {[%emt 0:00:44] Intending Qh8+ and mate.} Ree7 {[%emt 0:00:33]} 39. Qh8+ {[%emt 0:00:09]} Kf7 {[%emt 0:00:01]} 40. Qxg7+ {[%emt 0:00:12]} Ke8 {[%emt 0:00:00]} 41. Rh8+ {[%emt 0:30:11]} Kd7 {[%emt 0:30:02] [#]} 42. Qxe7+ $3 {[%emt 0:00:07][%mdl 512] Weighted Error Value: White=0.14 (very precise) /Black=0.60} 1-0

[Event "55th Biel Festival MTO 2022"]
[Site "Biel"]
[Date "2022.07.18"]
[Round "5.5"]
[White "Erdos Viktor"]
[Black "Yu Yangyi"]
[Result "1/2-1/2"]
[ECO "B50"]
[WhiteElo "2586"]
[BlackElo "2720"]
[Annotator "TA"]
[PlyCount "58"]
[EventDate "2022.07.13"]
[EventType "swiss"]
[EventCountry "SUI"]
[SourceTitle "playchess.com"]
[Source "ChessBase"]
[SourceQuality "1"]
[TimeControl "40/5400+30:1800+30"]

{[%evp 12,58,29,12,24,24,16,13,20,11,27,25,31,5,26,25,31,22,36,31,41,24,24,28,28,23,22,10,21,15,12,10,20,4,12,0,0,0,0,0,14,0,0,0,0,0,0,0,0]} 1. e4 {[%emt 0:04:15]} c5 {[%emt 0:00:13]} 2. Nf3 {[%emt 0:00:06]} e6 {[%emt 0:00:42]} 3. b3 {[%emt 0:00:07]} d6 {[%emt 0:03:41]} 4. Bb2 {[%emt 0:01:58]} Nf6 {[%emt 0:01:05]} 5. e5 {[%emt 0:00:05]} dxe5 {[%emt 0:05:05]} 6. Nxe5 {[%emt 0:00:07]} Be7 {[%emt 0:03:46]} 7. Bd3 {[%emt 0:02:38]} Bd7 {[%emt 0:07:01] B50: Sicilian: 2...d6, Miscellaneous.} 8. Na3 {[%emt 0:07:41][%cal Bb1a3,Ba3c4,Bc4e5][%mdl 32]} Nc6 {[%emt 0:02:25]} 9. Nac4 {[%emt 0:00:23]} O-O {[%emt 0:07:50]} 10. O-O {[%emt 0:01:53] [#]} Nd4 $146 {[%emt 0:00:41]} ({Predecessor:} 10... b5 11. Nxc6 Bxc6 12. Ne5 Be8 13. Qe2 Rb8 14. c4 bxc4 15. Bxc4 Nd5 16. Rfd1 Qc7 {½-½ (22) Kralovic,A (2253)-Plachetka,J (2291) Slovakia 2019}) 11. Re1 {[%emt 0:37:11]} Be8 {[%emt 0:19:04]} 12. Nf3 {[%emt 0:00:56]} Nc6 {[%emt 0:03:28]} 13. Nce5 {[%emt 0:01:53]} Nb4 {[%emt 0:01:24]} 14. Bf1 {[%emt 0:01:10]} Qc7 {[%emt 0:01:55]} 15. a3 {[%emt 0:04:32]} Nc6 {[%emt 0:01:55]} 16. Nxc6 {[%emt 0:01:57]} Bxc6 {[%emt 0:00:40]} 17. Ne5 {[%emt 0:00:15]} Be4 {[%emt 0:03:56]} 18. d3 {[%emt 0:02:51]} Rad8 {[%emt 0:01:50]} 19. Qe2 {[%emt 0:05:15] The position is equal.} Bd5 {[%emt 0:00:13]} 20. c4 {[%emt 0:00:28]} Bc6 {[%emt 0:00:07]} 21. g3 {[%emt 0:01:36]} a5 {[%emt 0:04:45]} 22. Bc3 {[%emt 0:12:48]} Nd7 {[%emt 0:07:36]} 23. Nxd7 {[%emt 0:04:15]} Rxd7 {[%emt 0:00:50]} 24. Qb2 {[%emt 0:00:03]} g6 {[%emt 0:00:45]} 25. Qd2 {[%emt 0:01:38] next Qh6 is good for White.} Ra8 $1 {[%emt 0:02:02]} 26. Qh6 {[%emt 0:00:16][%csl Gc3][%cal Rh6g7] [#]} Bf8 {[%emt 0:00:07] Prevents Qg7+.} 27. Qg5 {[%emt 0:00:04]} Be7 {[%emt 0:00:48] Inhibits Qf6.} 28. Qh6 {[%emt 0:00:05][%csl Gc3][%cal Rh6g7]} Bf8 {[%emt 0:00:27] Against Qg7+} 29. Qg5 {[%emt 0:00:05] Threatens to win with Qf6.} Be7 $1 {[%emt 0:00:28] Prevents Qf6.  Weighted Error Value: White=0.06 (flawless) /Black=0.04 (flawless)} 1/2-1/2

[Event "55th Biel Festival MTO 2022"]
[Site "Biel"]
[Date "2022.07.18"]
[Round "5.6"]
[White "Alekseenko Kirill"]
[Black "Azarov Sergei"]
[Result "1-0"]
[ECO "C92"]
[WhiteElo "2708"]
[BlackElo "2566"]
[Annotator "TA"]
[PlyCount "67"]
[EventDate "2022.07.13"]
[EventType "swiss"]
[EventCountry "SUI"]
[SourceTitle "playchess.com"]
[Source "ChessBase"]
[SourceQuality "1"]
[TimeControl "40/5400+30:1800+30"]

{[%evp 22,67,27,10,41,9,0,0,7,16,18,15,45,-6,34,8,28,24,52,54,62,65,85,87,73,77,74,68,65,72,104,47,47,36,81,-5,95,101,89,89,82,12,8,6,8,15,10,54]} 1. e4 {[%emt 0:00:15]} e5 {[%emt 0:00:12]} 2. Nf3 {[%emt 0:00:55]} Nc6 {[%emt 0:03:29]} 3. Bb5 {[%emt 0:25:46][%cal Bf1b5,Bb5a4,Ba4b3][%mdl 32]} a6 {[%emt 0:00:30]} 4. Ba4 {[%emt 0:00:30]} Nf6 {[%emt 0:00:30]} 5. O-O {[%emt 0:00:30]} Be7 {[%emt 0:00:30]} 6. Re1 {[%emt 0:00:30]} b5 {[%emt 0:00:30]} 7. Bb3 {[%emt 0:00:30]} d6 {[%emt 0:00:30]} 8. c3 {[%emt 0:00:30]} O-O {[%emt 0:00:30]} 9. h3 {[%emt 0:00:30]} Re8 {[%emt 0:00:30]} 10. d4 {[%emt 0:00:30]} Bb7 {[%emt 0:00:30]} 11. Nbd2 {[%emt 0:00:30]} Bf8 {[%emt 0:00:30]} 12. Bc2 {[%emt 0:00:30]} Rc8 {[%emt 0:00:30] [#] C92: Closed Ruy Lopez: 9...Be6, Karpov and Flohr-Zaitsev Variations.} 13. b3 $1 $146 {[%emt 0:00:30][%mdl 8] A top novelty.} ({Predecessor:} 13. a3 Nb8 14. a4 Nbd7 15. axb5 axb5 16. Bd3 c6 17. b4 Ra8 18. Rxa8 Qxa8 19. Bb2 h6 20. Qc2 {½-½ (31) Peli,G (2542)-Piccardo,V (2574) ICCF corr 2002}) 13... b4 {[%emt 0:35:56]} 14. Bb2 {[%emt 0:28:17]} bxc3 {[%emt 0:13:44]} 15. Bxc3 {[%emt 0:00:57]} exd4 {[%emt 0:26:03]} 16. Nxd4 {[%emt 0:00:30]} Ne5 {[%emt 0:00:30]} 17. b4 {[%emt 0:00:30]} (17. f4 $14 Ned7 18. Rc1) 17... g6 {[%emt 0:00:30]} 18. Ba4 {[%emt 0:00:30]} c6 {[%emt 0:00:30]} (18... c5 {is more complex.} 19. bxc5 Rxc5 20. Rc1 Nd3) 19. N4f3 {[%emt 0:00:30]} Nfd7 {[%emt 0:00:30]} (19... Nd3 {feels hotter.} 20. Re3 Nf4 21. Qb3 Nd7) 20. Nxe5 {[%emt 0:00:30]} Nxe5 {[%emt 0:00:30]} 21. Nb3 {[%emt 0:00:30]} Bh6 {[%emt 0:00:30] Prevents Qd2.} 22. Na5 {[%emt 0:04:11]} Ba8 {[%emt 0:01:37]} 23. Qe2 {[%emt 0:00:10]} Qb6 {[%emt 0:05:10]} 24. Rad1 {[%emt 0:00:39]} Red8 {[%emt 0:01:05]} 25. Bb3 {[%emt 0:06:08]} Bg7 {[%emt 0:02:10]} 26. Kh1 {[%emt 0:07:50]} ({Better is} 26. h4 $16) 26... c5 $14 {[%emt 0:01:06]} 27. Qe3 {[%emt 0:01:02] Threatens to win with f4.} Qc7 {[%emt 0:01:35]} 28. f4 {[%emt 0:04:42]} (28. f3 $16) 28... cxb4 {[%emt 0:00:33]} (28... c4 $11 29. Bxe5 dxe5 30. Nxc4 exf4) 29. Bxb4 $16 {[%emt 0:00:25]} Nc6 {[%emt 0:01:39]} 30. Nxc6 {[%emt 0:00:10] 0x0.0014493b71ecdp-1022s more active pieces.} Bxc6 {[%emt 0:00:08] [#]} 31. Qd3 {[%emt 0:04:40]} (31. Qd2 $1 $16) 31... Qb7 $11 {[%emt 0:01:23] The position is equal.} 32. Bxd6 {[%emt 0:01:45]} Bf8 {[%emt 0:01:10]} 33. e5 {[%emt 0:00:04] Rd2 is the strong threat.} Bxg2+ {[%emt 0:00:59]} 34. Kh2 {[%emt 0:00:04] Weighted Error Value: White=0.25 (precise) /Black=0.18 (very precise)} 1-0

[Event "55th Biel Festival MTO 2022"]
[Site "Biel"]
[Date "2022.07.18"]
[Round "5.7"]
[White "Prraneeth Vuppala"]
[Black "Fedoseev Vladimir"]
[Result "0-1"]
[ECO "B00"]
[WhiteElo "2457"]
[BlackElo "2686"]
[Annotator "TA"]
[PlyCount "62"]
[EventDate "2022.07.13"]
[EventType "swiss"]
[EventCountry "SUI"]
[SourceTitle "playchess.com"]
[Source "ChessBase"]
[SourceQuality "1"]
[TimeControl "40/5400+30:1800+30"]

{[%evp 9,62,42,58,39,52,31,52,48,43,0,2,0,0,0,0,0,0,0,0,0,0,0,8,52,35,-68,-56,-75,-66,-80,-69,-69,-29,-22,-43,-48,-46,-45,-29,-29,-35,-60,-55,-95,-89,-83,0,-16,-35,-43,-48,-598,-612,-585,-597]} 1. e4 {[%emt 0:00:06]} Nc6 {[%emt 0:00:59]} 2. Nf3 {[%emt 0:01:00]} d6 {[%emt 0:01:19]} 3. d4 {[%emt 0:04:05]} Nf6 {[%emt 0:00:01]} 4. Nc3 {[%emt 0:07:25]} g6 {[%emt 0:00:13]} 5. d5 {[%emt 0:08:22]} Nb8 {[%emt 0:01:34]} 6. Be3 {[%emt 0:07:39] B00: Queen's Fianchetto Defence, Nimzowitsch Defence.} c6 {[%emt 0:01:55]} 7. Qd2 {[%emt 0:04:55]} Bg7 {[%emt 0:03:13]} 8. h3 {[%emt 0:07:45] White is slightly better.} Nbd7 {[%emt 0:06:28] [#]} 9. a4 $146 {[%emt 0:02:21]} ({Predecessor:} 9. g4 cxd5 10. exd5 Nc5 11. g5 Nfe4 12. Nxe4 Nxe4 13. Qb4 Nc5 14. Bd4 Bxd4 15. Qxd4 {0-1 (52) Hovhannisyan,R (2439)-Gelashvili,T (2609) Gyumri 2009}) 9... O-O {[%emt 0:01:53]} 10. Be2 {[%emt 0:11:08]} Nc5 {[%emt 0:06:04]} 11. Bxc5 {[%emt 0:04:07]} dxc5 {[%emt 0:00:30]} 12. dxc6 {[%emt 0:00:59]} bxc6 {[%emt 0:05:17]} 13. Qe3 {[%emt 0:04:39]} Rb8 {[%emt 0:01:49]} 14. Rb1 {[%emt 0:02:33]} Nd7 {[%emt 0:01:29]} 15. O-O {[%emt 0:02:39]} Qa5 {[%emt 0:01:44]} 16. e5 {[%emt 0:09:50]} Nb6 {[%emt 0:02:18]} 17. Nd2 {[%emt 0:03:46]} (17. Ne4 $14) 17... Nd5 $15 {[%emt 0:03:42]} 18. Nxd5 {[%emt 0:00:35]} cxd5 {[%emt 0:00:30]} 19. Nb3 {[%emt 0:03:24][%cal Bd2b3,Bb3d4,Bd4b5,Bb5a7][%mdl 32]} Qc7 {[%emt 0:01:27]} 20. Qxc5 {[%emt 0:04:56]} Bxe5 {[%emt 0:00:31]} (20... Qxe5 {feels hotter.} 21. Bd3 Qf4 22. Qxd5 Be6) 21. Qxc7 {[%emt 0:03:17]} Bxc7 {[%emt 0:00:02]} 22. Nd4 {[%emt 0:00:07]} Bb7 {[%emt 0:01:18] Prevents Nc6.} 23. b4 {[%emt 0:00:56]} Rfc8 {[%emt 0:00:34][%cal Bf8c8,Bc8c2,Bc2a2][%mdl 32]} 24. Nb5 {[%emt 0:01:44]} Be5 {[%emt 0:00:54]} 25. Nxa7 {[%emt 0:01:29]} Rxc2 {[%emt 0:00:01]} 26. Bd3 {[%emt 0:00:20]} Ra2 {[%emt 0:01:14] Black is more active.} 27. a5 {[%emt 0:01:00]} Bd6 {[%emt 0:03:38]} (27... Kg7 $17) 28. Rfe1 {[%emt 0:02:35]} Ra4 {[%emt 0:00:57]} 29. Bb5 {[%emt 0:00:47]} Rxb4 {[%emt 0:00:10]} 30. a6 $2 {[%emt 0:00:26][%mdl 8192]} (30. Rxb4 $15 Bxb4 31. Ra1) 30... Rxb1 $19 {[%emt 0:00:21]} 31. Rxb1 {[%emt 0:00:18] [#]} Bxa6 $1 {[%emt 0:00:30][%mdl 512] Weighted Error Value: White=0.43/Black=0.07 (flawless)} 0-1